[Event "18th Charleroi Open-A 2019"]
[Site "Charleroi"]
[Date "2019.07.28"]
[Round "2.9"]
[White "Moreels, Yves"]
[Black "Gijsen, Stief"]
[Result "1/2-1/2"]
[ECO "A29"]
[WhiteElo "2079"]
[BlackElo "2227"]
[Annotator "NA"]
[PlyCount "117"]
[EventDate "2019.07.22"]
[EventType "swiss"]
[EventCountry "BEL"]
[SourceTitle "playchess.com"]
[Source "ChessBase"]
[SourceQuality "1"]
[TimeControl "40/5400+30:1800+30"]

1. c4 {[%emt 1:30:30]} e5 {[%emt 1:30:30]} 2. Nc3 {[%emt 0:00:30]} Nf6 {[%emt 0:00:30]} 3. Nf3 {[%emt 0:00:30]} Nc6 {[%emt 0:00:30]} 4. g3 {[%emt 0:00:30]} d5 {[%emt 0:00:30]} 5. cxd5 {[%emt 0:00:30]} Nxd5 {[%emt 0:00:30]} 6. Bg2 {[%emt 0:00:30]} Nb6 {[%emt 0:00:30]} 7. O-O {[%emt 0:00:30]} Be7 {[%emt 0:00:30]} 8. a3 {[%emt 0:00:30]} O-O {[%emt 0:00:30]} 9. b4 {[%emt 0:00:30]} Be6 {[%emt 0:00:30]} 10. Rb1 {[%emt 0:00:30]} f6 {[%emt 0:00:30]} 11. d3 {[%emt 0:00:30]} a5 {[%emt 0:00:30]} 12. b5 {[%emt 0:00:30]} Nd4 {[%emt 0:00:30]} 13. Be3 {[%emt 0:00:30]} Bxa3 {[%emt 0:00:30]} 14. Bxd4 {[%emt 0:00:30]} exd4 15. Na4 {[%emt 0:00:30]} Bb4 {[%emt 0:01:00]} 16. Qc2 {[%emt 0:00:30]} Nxa4 {[%emt 0:00:30]} 17. Qxa4 {[%emt 0:00:30]} Bd5 {[%emt 0:00:30]} 18. Rfc1 {[%emt 0:00:30]} Qd7 {[%emt 0:00:30]} 19. Rxb4 {[%emt 0:00:30]} axb4 {[%emt 0:00:30]} 20. Qxb4 {[%emt 0:00:30]} Ra2 {[%emt 0:00:30]} 21. Nxd4 {[%emt 0:00:30]} Bxg2 {[%emt 0:00:30]} 22. Kxg2 {[%emt 0:00:30]} Rd8 23. Rc4 {[%emt 0:00:30]} Qd5+ {[%emt 0:01:00]} 24. e4 {[%emt 0:00:30]} Qd6 {[%emt 0:00:30]} 25. Qb3 {[%emt 0:00:30]} Ra3 {[%emt 0:00:30]} 26. Qc2 {[%emt 0:00:30]} Qb6 {[%emt 0:00:30]} 27. Nf5 {[%emt 0:00:30]} Raxd3 {[%emt 0:00:30]} 28. Ne7+ {[%emt 0:00:30]} Kf8 {[%emt 0:00:30]} 29. Nd5 {[%emt 0:00:30]} R3xd5 {[%emt 0:00:30]} 30. exd5 {[%emt 0:00:30]} Qxb5 {[%emt 0:00:30]} 31. Rc5 {[%emt 0:00:30]} Qd7 {[%emt 0:00:30]} 32. Qxh7 {[%emt 0:00:30]} b6 {[%emt 0:00:30]} 33. Qh8+ {[%emt 0:00:30]} Kf7 {[%emt 0:00:30]} 34. Qh5+ {[%emt 0:00:30]} Kg8 {[%emt 0:00:30]} 35. Rc1 {[%emt 0:00:30]} Qxd5+ {[%emt 0:00:30]} 36. Qxd5+ {[%emt 0:00:30]} Rxd5 {[%emt 0:00:30]} 37. Rxc7 {[%emt 0:00:30]} b5 {[%emt 0:00:30]} 38. h4 {[%emt 0:00:30]} b4 {[%emt 0:00:30]} 39. Rb7 {[%emt 0:00:30]} Rd4 {[%emt 0:00:30]} 40. Kf3 {[%emt 0:00:30]} Rc4 {[%emt 0:00:30]} 41. Ke2 {[%emt 0:30:30]} Kh7 {[%emt 0:30:30]} 42. Kd3 {[%emt 0:00:30]} Rg4 {[%emt 0:00:30]} 43. Ke3 {[%emt 0:00:30]} Kg6 {[%emt 0:00:30]} 44. Rb5 {[%emt 0:00:30]} Kf7 {[%emt 0:00:30]} 45. Ke2 {[%emt 0:00:30]} Rc4 {[%emt 0:00:30]} 46. Kd3 {[%emt 0:00:30]} Rg4 {[%emt 0:00:30]} 47. Ke2 {[%emt 0:00:30]} Ke6 {[%emt 0:00:30]} 48. f4 {[%emt 0:00:30]} Rxg3 {[%emt 0:00:30]} 49. Rxb4 {[%emt 0:00:30]} Kf5 {[%emt 0:00:30]} 50. Kf2 {[%emt 0:00:30]} Kg4 {[%emt 0:00:30]} 51. h5 {[%emt 0:00:30]} Rf3+ {[%emt 0:00:30]} 52. Ke2 Rg3 {[%emt 0:00:30]} 53. Kf2 {[%emt 0:01:00]} Kh4 {[%emt 0:00:30]} 54. Rb5 {[%emt 0:00:30]} Ra3 {[%emt 0:00:30]} 55. Rb7 {[%emt 0:00:30]} Kg4 {[%emt 0:00:30]} 56. Rxg7+ {[%emt 0:00:30]} Kxf4 {[%emt 0:00:30]} 57. h6 {[%emt 0:00:30]} Rh3 {[%emt 0:00:30]} 58. h7 {[%emt 0:00:30]} f5 {[%emt 0:00:30]} 59. Kg2 {[%emt 0:00:30]} 1/2-1/2

[Event "18th Charleroi Open-A 2019"]
[Site "Charleroi"]
[Date "2019.07.28"]
[Round "2.10"]
[White "De Waele, Warre"]
[Black "Van Dijck, Bjarne"]
[Result "1-0"]
[ECO "D85"]
[WhiteElo "2225"]
[BlackElo "2053"]
[Annotator "NA"]
[PlyCount "77"]
[EventDate "2019.07.22"]
[EventType "swiss"]
[EventCountry "BEL"]
[SourceTitle "playchess.com"]
[Source "ChessBase"]
[SourceQuality "1"]
[TimeControl "40/5400+30:1800+30"]

1. d4 {[%emt 0:00:00]} Nf6 {[%emt 0:00:00]} 2. Nf3 {[%emt 0:00:00]} g6 {[%emt 0:00:00]} 3. c4 {[%emt 0:00:08]} Bg7 {[%emt 0:00:58]} 4. Nc3 {[%emt 0:00:35]} d5 {[%emt 0:00:07]} 5. cxd5 {[%emt 0:02:01]} Nxd5 {[%emt 0:00:05]} 6. e4 {[%emt 0:00:11]} Nxc3 {[%emt 0:00:07]} 7. bxc3 {[%emt 0:00:04]} c5 {[%emt 0:00:05]} 8. Be3 {[%emt 0:01:59]} Bg4 {[%emt 0:01:31]} 9. Rc1 {[%emt 0:07:51]} O-O {[%emt 1:31:37]} 10. Qd2 {[%emt 1:22:11]} Qa5 {[%emt 0:00:00]} 11. d5 {[%emt 0:00:00]} c4 {[%emt 0:00:00]} 12. Nd4 {[%emt 0:00:00]} b5 {[%emt 0:00:00]} 13. h4 {[%emt 0:00:00]} e6 {[%emt 0:00:00]} 14. dxe6 {[%emt 0:00:00]} fxe6 15. h5 {[%emt 0:00:00]} Rd8 {[%emt 0:00:00]} 16. e5 {[%emt 0:00:00]} Bxe5 {[%emt 0:00:00]} 17. hxg6 {[%emt 0:00:00]} hxg6 {[%emt 0:00:00]} 18. f3 {[%emt 0:00:00]} Bf5 {[%emt 0:00:00]} 19. g4 {[%emt 0:00:00]} Nc6 {[%emt 0:02:53]} 20. gxf5 {[%emt 0:00:00]} Nxd4 {[%emt 0:00:55]} 21. cxd4 {[%emt 0:00:00]} Qxd2+ {[%emt 0:00:32]} 22. Kxd2 {[%emt 0:00:00]} Bxd4 {[%emt 0:01:05]} 23. Bxd4 {[%emt 0:00:00]} Rxd4+ {[%emt 0:00:20]} 24. Ke3 {[%emt 0:00:00]} e5 {[%emt 0:00:38]} 25. Rg1 {[%emt 0:00:00]} Rad8 {[%emt 0:00:59]} 26. Rxg6+ {[%emt 0:00:00]} Kf7 {[%emt 0:00:07]} 27. Re6 {[%emt 0:00:00]} Rd1 {[%emt 0:00:51]} 28. Rxd1 {[%emt 0:00:00]} Rxd1 {[%emt 0:00:06]} 29. Be2 {[%emt 0:00:00]} Ra1 {[%emt 0:00:44]} 30. Ra6 {[%emt 0:00:00]} c3 {[%emt 0:00:41]} 31. Rxa7+ {[%emt 0:00:00]} Kf6 {[%emt 0:00:01]} 32. Bd3 {[%emt 0:00:00]} Re1+ {[%emt 0:00:52]} 33. Kf2 {[%emt 0:00:00]} Rd1 {[%emt 0:00:33]} 34. Ke2 {[%emt 0:00:00]} Rd2+ {[%emt 0:00:08]} 35. Ke3 {[%emt 0:00:00]} b4 {[%emt 0:00:44]} 36. Ra6+ {[%emt 0:00:00]} Kf7 {[%emt 0:00:19]} 37. Rb6 {[%emt 0:00:00]} Rb2 {[%emt 0:00:03]} 38. Bc4+ {[%emt 0:00:00]} Kf8 {[%emt 0:01:03]} 39. f6 {[%emt 0:00:00]} 1-0

[Event "18th Charleroi Open-A 2019"]
[Site "Charleroi"]
[Date "2019.07.28"]
[Round "2.12"]
[White "Verbist, Julien"]
[Black "Abdullayev, Elshad"]
[Result "1/2-1/2"]
[ECO "B20"]
[WhiteElo "1974"]
[BlackElo "2204"]
[Annotator "NA"]
[PlyCount "53"]
[EventDate "2019.07.22"]
[EventType "swiss"]
[EventCountry "BEL"]
[SourceTitle "playchess.com"]
[Source "ChessBase"]
[SourceQuality "1"]
[TimeControl "40/5400+30:1800+30"]

1. e4 {[%emt 0:00:00]} c5 {[%emt 0:03:22]} 2. Bc4 {[%emt 0:00:00]} e6 {[%emt 0:00:35]} 3. Qe2 {[%emt 0:00:00]} a6 {[%emt 0:00:07]} 4. d3 {[%emt 0:00:00]} Nc6 {[%emt 0:01:40]} 5. c3 {[%emt 0:00:00]} Na5 {[%emt 0:01:31]} 6. Nd2 {[%emt 0:00:18]} b5 {[%emt 0:00:10]} 7. Bb3 {[%emt 0:00:05]} Nxb3 {[%emt 0:00:11]} 8. Nxb3 {[%emt 0:00:35]} d5 {[%emt 0:05:16]} 9. d4 {[%emt 0:04:22]} c4 {[%emt 0:01:20]} 10. Nd2 {[%emt 0:00:14]} dxe4 {[%emt 0:00:25]} 11. Nxe4 Bb7 {[%emt 0:00:35]} 12. Nf3 {[%emt 0:00:34]} Nf6 {[%emt 0:00:38]} 13. Bg5 {[%emt 0:01:15]} Bxe4 {[%emt 0:00:30]} 14. Bxf6 {[%emt 0:00:42]} Bxf3 {[%emt 0:02:14]} 15. Qxf3 {[%emt 0:00:25]} gxf6 {[%emt 0:00:12]} 16. Qc6+ {[%emt 0:00:04]} Ke7 {[%emt 0:00:04]} 17. Qb7+ {[%emt 0:00:06]} Kd6 {[%emt 0:00:08]} 18. d5 {[%emt 0:00:11]} exd5 {[%emt 0:01:16]} 19. O-O-O {[%emt 0:00:07]} Kc5 {[%emt 0:12:46]} 20. b4+ {[%emt 0:00:18]} cxb3 {[%emt 0:00:05]} 21. axb3 {[%emt 0:00:11]} a5 {[%emt 0:00:19]} 22. c4 {[%emt 0:03:38]} bxc4 {[%emt 0:03:18]} 23. bxc4 {[%emt 0:00:07]} Kxc4 {[%emt 0:56:34]} 24. Qc6+ {[%emt 0:01:12]} Bc5 25. Qa4+ {[%emt 0:04:44]} Bb4 {[%emt 0:01:31]} 26. Qc6+ {[%emt 0:00:37]} Bc5 {[%emt 0:00:13]} 27. Qa4+ {[%emt 0:00:41]} 1/2-1/2

[Event "18th Charleroi Open-A 2019"]
[Site "Charleroi"]
[Date "2019.07.28"]
[Round "2.13"]
[White "Decrop, Benjamin"]
[Black "Partoens, Remi"]
[Result "1-0"]
[ECO "C47"]
[WhiteElo "2183"]
[BlackElo "1957"]
[Annotator "NA"]
[PlyCount "105"]
[EventDate "2019.07.22"]
[EventType "swiss"]
[EventCountry "BEL"]
[SourceTitle "playchess.com"]
[Source "ChessBase"]
[SourceQuality "1"]
[TimeControl "40/5400+30:1800+30"]

1. e4 {[%emt 0:00:00]} e5 {[%emt 0:00:00]} 2. Nf3 {[%emt 0:00:00]} Nf6 {[%emt 0:00:00]} 3. Nc3 {[%emt 0:00:00]} Nc6 {[%emt 0:00:03]} 4. d4 {[%emt 0:00:00]} exd4 {[%emt 0:00:26]} 5. Nxd4 {[%emt 0:00:00]} Bb4 {[%emt 0:00:05]} 6. Nxc6 {[%emt 0:00:00]} bxc6 {[%emt 0:00:04]} 7. Bd3 {[%emt 0:00:04]} O-O {[%emt 0:00:31]} 8. O-O {[%emt 0:00:05]} Re8 {[%emt 0:03:06]} 9. Qf3 {[%emt 0:06:45]} Rb8 {[%emt 0:00:19]} 10. h3 {[%emt 0:00:47]} Bd6 {[%emt 0:00:07]} 11. Rb1 {[%emt 0:21:30]} Be5 {[%emt 0:01:33]} 12. Bd2 {[%emt 0:00:39]} d6 {[%emt 0:01:33]} 13. b3 {[%emt 0:01:22]} c5 {[%emt 0:08:13]} 14. Rfe1 {[%emt 0:04:03]} Bd7 {[%emt 0:17:30]} 15. Nd5 {[%emt 0:00:16]} Nxd5 {[%emt 0:01:47]} 16. exd5 {[%emt 0:00:21]} Qf6 {[%emt 0:00:13]} 17. Qxf6 {[%emt 0:01:50]} Bxf6 {[%emt 0:01:04]} 18. Ba5 {[%emt 0:00:07]} Bd8 {[%emt 0:06:12]} 19. Bf5 {[%emt 0:03:09]} c6 {[%emt 0:03:10]} 20. Bc3 {[%emt 0:00:18]} Rxe1+ {[%emt 0:15:55]} 21. Rxe1 {[%emt 0:00:05]} Ba5 {[%emt 0:05:11]} 22. Bxa5 {[%emt 0:00:52]} Bxf5 {[%emt 0:00:26]} 23. dxc6 {[%emt 0:00:44]} Rc8 {[%emt 0:07:13]} 24. c4 {[%emt 0:11:48]} Kf8 {[%emt 0:01:29]} 25. c7 {[%emt 0:01:00]} Re8 {[%emt 0:03:24]} 26. Rd1 {[%emt 0:00:19]} Ke7 {[%emt 0:00:16]} 27. b4 {[%emt 0:01:13]} Rc8 {[%emt 0:06:48]} 28. bxc5 {[%emt 0:01:32]} dxc5 {[%emt 0:00:22]} 29. Rd5 {[%emt 0:00:30]} Be6 {[%emt 0:00:39]} 30. Rxc5 {[%emt 0:00:32]} Kd6 {[%emt 0:01:24]} 31. Rb5 {[%emt 0:05:47]} Bxc4 {[%emt 0:00:28]} 32. Rb8 {[%emt 0:00:35]} Ba6 {[%emt 0:02:14]} 33. f3 {[%emt 0:00:48]} Kc6 {[%emt 0:00:37]} 34. Kf2 {[%emt 0:00:53]} Bb7 {[%emt 0:00:56]} 35. h4 {[%emt 0:01:40]} Kb5 {[%emt 0:01:45]} 36. Rxb7+ {[%emt 0:00:09]} Kxa5 {[%emt 0:00:11]} 37. Rxa7+ {[%emt 0:00:49]} Kb6 {[%emt 0:00:07]} 38. Ra3 {[%emt 0:00:11]} Rxc7 {[%emt 0:00:05]} 39. Rb3+ {[%emt 0:00:04]} Ka5 {[%emt 0:01:00]} 40. g4 {[%emt 0:00:25]} Rc2+ {[%emt 0:00:26]} 41. Kg3 {[%emt 0:30:12]} Rc7 {[%emt 0:37:54]} 42. h5 {[%emt 0:01:19]} h6 {[%emt 0:01:26]} 43. Kf4 {[%emt 0:01:38]} Re7 {[%emt 0:00:00]} 44. Kf5 {[%emt 0:00:00]} Rc7 {[%emt 0:00:00]} 45. Rb8 {[%emt 0:00:00]} Ka4 {[%emt 0:00:00]} 46. Rg8 {[%emt 0:00:00]} Rc5+ {[%emt 0:00:00]} 47. Kf4 {[%emt 0:00:00]} Rg5 {[%emt 0:00:00]} 48. Rf8 {[%emt 0:00:00]} f6 {[%emt 0:00:00]} 49. Rf7 {[%emt 0:00:00]} Kb4 {[%emt 0:00:00]} 50. Kg3 {[%emt 0:00:00]} Kc4 {[%emt 0:00:00]} 51. f4 {[%emt 0:00:00]} Ra5 {[%emt 0:00:00]} 52. Rxg7 {[%emt 0:00:00]} Ra3+ {[%emt 0:00:00]} 53. Kh4 {[%emt 0:00:00]} 1-0

[Event "18th Charleroi Open-A 2019"]
[Site "Charleroi"]
[Date "2019.07.28"]
[Round "2.14"]
[White "Ramacker, Quinten"]
[Black "Hoffmeister, Frank"]
[Result "0-1"]
[ECO "C01"]
[WhiteElo "2006"]
[BlackElo "2187"]
[Annotator "NA"]
[PlyCount "85"]
[EventDate "2019.07.22"]
[EventType "swiss"]
[EventCountry "BEL"]
[SourceTitle "playchess.com"]
[Source "ChessBase"]
[SourceQuality "1"]
[TimeControl "40/5400+30:1800+30"]

1. e4 {[%emt 0:00:17]} e6 {[%emt 0:00:00]} 2. d4 {[%emt 0:00:13]} d5 {[%emt 0:00:00]} 3. Bd3 {[%emt 0:02:21]} dxe4 {[%emt 0:09:01]} 4. Bxe4 {[%emt 0:00:13]} Nf6 {[%emt 0:00:04]} 5. Bf3 {[%emt 0:00:09]} Nc6 {[%emt 0:00:26]} 6. Be3 {[%emt 1:29:47]} Bd6 {[%emt 0:05:18]} 7. Nc3 {[%emt 0:00:00]} O-O {[%emt 0:02:08]} 8. Nge2 {[%emt 0:00:00]} e5 {[%emt 0:02:57]} 9. O-O {[%emt 0:00:00]} Bg4 {[%emt 0:18:15]} 10. d5 {[%emt 0:00:00]} Bxf3 {[%emt 0:02:26]} 11. gxf3 {[%emt 0:00:00]} Ne7 {[%emt 0:00:05]} 12. Bg5 {[%emt 0:00:00]} Ng6 {[%emt 0:01:01]} 13. Ng3 {[%emt 0:00:00]} h6 {[%emt 0:03:41]} 14. Be3 {[%emt 0:00:00]} Bb4 {[%emt 0:06:43]} 15. Nge4 {[%emt 0:00:00]} Bxc3 16. Nxc3 {[%emt 0:00:00]} Qd7 {[%emt 0:02:54]} 17. Ne4 {[%emt 0:00:00]} Nxd5 {[%emt 0:08:00]} 18. c4 {[%emt 0:00:00]} Qh3 {[%emt 0:02:25]} 19. Kh1 {[%emt 0:00:00]} Nh4 {[%emt 0:04:54]} 20. Rg1 {[%emt 0:00:00]} Nxe3 {[%emt 0:02:54]} 21. fxe3 {[%emt 0:00:00]} Rad8 {[%emt 0:00:51]} 22. Qe2 {[%emt 0:00:00]} Qxf3+ {[%emt 0:00:08]} 23. Qxf3 {[%emt 0:00:00]} Nxf3 {[%emt 0:00:01]} 24. Rg3 {[%emt 0:00:00]} Nh4 {[%emt 0:02:24]} 25. Rag1 {[%emt 0:00:00]} g6 {[%emt 0:03:09]} 26. Nf6+ {[%emt 0:00:00]} Kg7 {[%emt 0:01:17]} 27. Nh5+ {[%emt 0:00:00]} Kh7 {[%emt 0:01:10]} 28. Nf6+ {[%emt 0:00:00]} Kg7 {[%emt 0:00:05]} 29. Nh5+ {[%emt 0:00:00]} Kh8 {[%emt 0:00:22]} 30. Rh3 {[%emt 0:00:00]} g5 {[%emt 0:02:06]} 31. Nf6 {[%emt 0:00:00]} Rd6 {[%emt 0:01:46]} 32. Ng4 {[%emt 0:00:00]} e4 {[%emt 0:03:00]} 33. c5 {[%emt 0:00:00]} Re6 {[%emt 0:01:02]} 34. Rd1 {[%emt 0:00:00]} f5 {[%emt 0:00:44]} 35. Nf2 {[%emt 0:00:00]} Rf7 {[%emt 0:01:04]} 36. Rd8+ {[%emt 0:00:00]} Kg7 {[%emt 0:00:02]} 37. Nd1 {[%emt 0:00:00]} Ree7 {[%emt 0:00:23]} 38. Nc3 {[%emt 0:00:00]} Rd7 {[%emt 0:00:36]} 39. Ra8 {[%emt 0:00:00]} Rd2 {[%emt 0:01:10]} 40. Rxa7 {[%emt 0:00:00]} Rxb2 {[%emt 0:00:19]} 41. Rg3 {[%emt 0:19:13]} Rc2 {[%emt 0:31:44]} 42. Ra3 {[%emt 0:00:25]} Nf3 {[%emt 0:00:23]} 43. Nb1 {[%emt 0:00:57]} 0-1

[Event "18th Charleroi Open-A 2019"]
[Site "Charleroi"]
[Date "2019.07.28"]
[Round "2.17"]
[White "Duhayon, Yves"]
[Black "Godde, Matthias"]
[Result "0-1"]
[ECO "E97"]
[WhiteElo "2132"]
[BlackElo "1989"]
[Annotator "NA"]
[PlyCount "26"]
[EventDate "2019.07.22"]
[EventType "swiss"]
[EventCountry "BEL"]
[SourceTitle "playchess.com"]
[Source "ChessBase"]
[SourceQuality "1"]
[TimeControl "40/5400+30:1800+30"]

1. d4 {[%emt 0:00:00]} Nf6 {[%emt 0:00:00]} 2. c4 {[%emt 0:00:00]} g6 {[%emt 0:00:00]} 3. Nc3 {[%emt 0:00:03]} Bg7 {[%emt 0:00:00]} 4. e4 {[%emt 0:00:31]} d6 {[%emt 0:00:00]} 5. Nf3 {[%emt 0:00:19]} O-O {[%emt 0:00:00]} 6. Be2 {[%emt 0:00:13]} e5 {[%emt 0:00:30]} 7. O-O {[%emt 0:00:32]} Nc6 {[%emt 0:00:11]} 8. d5 {[%emt 0:00:25]} Ne7 {[%emt 0:00:01]} 9. Bg5 {[%emt 0:00:29]} Nh5 {[%emt 0:01:39]} 10. Ne1 {[%emt 0:00:38]} Nf4 {[%emt 0:00:07]} 11. Nd3 {[%emt 0:00:27]} Nxe2+ {[%emt 0:00:22]} 12. Qxe2 {[%emt 0:00:23]} h6 {[%emt 0:00:24]} 13. Bd2 {[%emt 0:02:33]} g5 {[%emt 1:33:16]} 0-1

[Event "18th Charleroi Open-A 2019"]
[Site "Charleroi"]
[Date "2019.07.28"]
[Round "2.23"]
[White "Van Mechelen, Jan"]
[Black "Zamparo, Sergio"]
[Result "1-0"]
[ECO "B07"]
[WhiteElo "2218"]
[BlackElo "2031"]
[Annotator "NA RC"]
[PlyCount "68"]
[EventDate "2019.07.22"]
[EventType "swiss"]
[EventCountry "BEL"]
[SourceTitle "playchess.com"]
[Source "ChessBase"]
[SourceQuality "1"]
[TimeControl "40/5400+30:1800+30"]

1. e4 {[%emt 0:00:00]} d6 {[%emt 0:00:00]} 2. d4 {[%emt 0:00:02]} Nf6 {[%emt 0:00:00]} 3. Nc3 {[%emt 0:00:16]} e5 {[%emt 0:00:00]} 4. Nge2 {[%emt 0:00:20]} Be7 {[%emt 0:01:01]} 5. g3 {[%emt 0:00:09]} O-O {[%emt 0:00:25]} 6. Bg2 {[%emt 0:00:06]} Nbd7 {[%emt 0:02:02]} 7. O-O {[%emt 0:00:16]} c6 {[%emt 0:00:08]} 8. a4 {[%emt 0:00:23]} a5 {[%emt 0:03:35]} 9. h3 {[%emt 0:01:37]} Re8 {[%emt 0:01:18]} 10. Be3 {[%emt 0:02:21]} exd4 {[%emt 0:12:08]} 11. Bxd4 {[%emt 0:00:35]} Nc5 {[%emt 0:00:38]} 12. g4 {[%emt 0:00:33]} Be6 {[%emt 0:06:25]} 13. f4 {[%emt 0:08:17]} Nfd7 {[%emt 0:01:00]} 14. b3 {[%emt 0:01:57]} f6 {[%emt 0:00:23]} 15. Ng3 {[%emt 0:04:47]} Qc7 {[%emt 0:04:47]} 16. Kh1 {[%emt 0:02:24]} Rad8 {[%emt 0:06:26]} 17. Qf3 {[%emt 0:04:09]} Nb6 {[%emt 0:02:08]} 18. Qf2 {[%emt 0:00:43]} Nbd7 {[%emt 0:07:20]} 19. Rae1 {[%emt 0:08:10]} Na6 {[%emt 0:04:51]} 20. Nh5 {[%emt 0:04:01]} Rf8 {[%emt 0:09:03]} 21. Nd1 {[%emt 0:04:56]} Nb4 {[%emt 0:02:57]} 22. Ne3 {[%emt 0:00:32]} Rde8 {[%emt 0:03:27]} 23. Rg1 {[%emt 0:08:39]} g6 {[%emt 0:02:18]} 24. Ng3 {[%emt 0:00:10]} d5 {[%emt 0:02:10]} 25. exd5 {[%emt 0:04:50]} Nxd5 {[%emt 0:01:28]} 26. Nxd5 {[%emt 0:00:21]} Bxd5 {[%emt 0:00:14]} 27. Bxd5+ {[%emt 0:00:14]} cxd5 {[%emt 0:00:06]} 28. Qg2 {[%emt 0:05:45]} Qc6 {[%emt 0:01:23]} 29. f5 {[%emt 0:06:23]} Bc5 {[%emt 0:00:38]} 30. Rd1 {[%emt 0:00:53]} Bxd4 {[%emt 0:02:23]} 31. Rxd4 {[%emt 0:00:08]} Nb6 {[%emt 0:01:35]} 32. fxg6 {[%emt 0:01:23]} hxg6 {[%emt 0:00:06]} 33. Nf5 {[%emt 0:00:36]} Kh7 {[%emt 0:02:06]} 34. Qf2 {[%emt 0:02:08]} g5 {[%emt 0:00:54]} 1-0

[Event "18th Charleroi Open-A 2019"]
[Site "Charleroi"]
[Date "2019.07.28"]
[Round "2.25"]
[White "Guion, Geoffrey"]
[Black "Ghyselen, Wouter"]
[Result "0-1"]
[ECO "C41"]
[WhiteElo "2006"]
[BlackElo "2078"]
[Annotator "NA RC"]
[PlyCount "89"]
[EventDate "2019.07.22"]
[EventType "swiss"]
[EventCountry "BEL"]
[SourceTitle "playchess.com"]
[Source "ChessBase"]
[SourceQuality "1"]
[TimeControl "40/5400+30:1800+30"]

1. e4 {[%emt 0:00:00]} d6 {[%emt 0:00:00]} 2. d4 {[%emt 0:00:00]} Nf6 {[%emt 0:00:00]} 3. Nc3 {[%emt 0:00:00]} e5 {[%emt 0:00:00]} 4. Nf3 {[%emt 0:00:33]} Nbd7 {[%emt 0:00:05]} 5. Bc4 {[%emt 0:00:18]} Be7 {[%emt 0:00:06]} 6. a4 {[%emt 0:00:58]} O-O {[%emt 0:00:12]} 7. h3 {[%emt 0:00:18]} c6 {[%emt 0:00:20]} 8. O-O {[%emt 0:00:23]} a5 {[%emt 0:00:17]} 9. Re1 {[%emt 0:01:24]} Nb6 {[%emt 0:00:45]} 10. Bb3 {[%emt 0:04:04]} Nfd7 {[%emt 0:03:06]} 11. dxe5 {[%emt 0:02:30]} dxe5 {[%emt 0:00:23]} 12. Be3 {[%emt 0:00:52]} Qc7 {[%emt 0:00:38]} 13. Nd2 {[%emt 0:02:32]} Nc5 {[%emt 0:00:55]} 14. Nc4 {[%emt 0:02:01]} Nbd7 {[%emt 0:01:15]} 15. Ba2 {[%emt 0:01:19]} Ne6 {[%emt 0:17:24]} 16. Qd2 {[%emt 0:07:11]} Ndc5 {[%emt 0:08:45]} 17. Rad1 {[%emt 0:03:31]} Rd8 {[%emt 0:09:34]} 18. Qc1 {[%emt 0:00:45]} Nd4 {[%emt 0:03:40]} 19. f4 {[%emt 0:03:52]} Bf6 {[%emt 0:01:14]} 20. Nxe5 {[%emt 0:05:27]} Bxe5 {[%emt 0:00:09]} 21. fxe5 {[%emt 0:00:47]} Qxe5 {[%emt 0:02:51]} 22. Bf4 {[%emt 0:06:10]} Qh5 {[%emt 0:07:22]} 23. Qe3 {[%emt 0:10:18]} Nce6 {[%emt 0:06:52]} 24. g4 {[%emt 0:15:03]} Qg6 {[%emt 0:02:45]} 25. Be5 {[%emt 0:04:56]} Nxc2 {[%emt 0:06:13]} 26. Rxd8+ {[%emt 0:02:06]} Nxd8 {[%emt 0:00:02]} 27. Qd2 {[%emt 0:09:30]} Bxg4 {[%emt 0:00:32]} 28. Qxc2 {[%emt 0:00:20]} Bxh3+ {[%emt 0:01:32]} 29. Kh1 {[%emt 0:05:37]} Bg4 {[%emt 0:09:45]} 30. Qg2 {[%emt 0:04:12]} Ne6 {[%emt 0:03:14]} 31. Bxe6 {[%emt 0:03:33]} Qxe6 {[%emt 0:00:21]} 32. Bf4 {[%emt 0:01:29]} Rd8 {[%emt 0:00:54]} 33. Qg3 h5 {[%emt 0:00:26]} 34. Qe3 {[%emt 0:03:07]} Qb3 {[%emt 0:03:06]} 35. Qf2 {[%emt 0:00:36]} Rd3 {[%emt 0:05:03]} 36. Re3 {[%emt 0:00:13]} Rd4 {[%emt 0:00:19]} 37. Bc7 {[%emt 0:01:31]} Rd7 {[%emt 0:02:25]} 38. Be5 {[%emt 0:00:41]} Qb4 {[%emt 0:02:59]} 39. Bf4 {[%emt 0:00:40]} Qb6 {[%emt 0:00:59]} 40. Re2 {[%emt 0:00:41]} Qd8 {[%emt 0:00:20]} 41. Rd2 {[%emt 0:04:36]} Rxd2 {[%emt 0:03:28]} 42. Bxd2 {[%emt 0:01:46]} Qd3 {[%emt 0:08:22]} 43. Be3 {[%emt 0:02:04]} b5 {[%emt 0:01:31]} 44. axb5 {[%emt 0:05:01]} cxb5 {[%emt 0:00:36]} 45. Bb6 {[%emt 0:02:11]} 0-1

[Event "18th Charleroi Open-A 2019"]
[Site "Charleroi"]
[Date "2019.07.28"]
[Round "2.26"]
[White "Van Uytven, Eric"]
[Black "De Weird, Matthias"]
[Result "1-0"]
[ECO "E18"]
[WhiteElo "2071"]
[BlackElo "2009"]
[Annotator "NA RC"]
[PlyCount "39"]
[EventDate "2019.07.22"]
[EventType "swiss"]
[EventCountry "BEL"]
[SourceTitle "playchess.com"]
[Source "ChessBase"]
[SourceQuality "1"]
[TimeControl "40/5400+30:1800+30"]

1. d4 {[%emt 0:00:00]} Nf6 {[%emt 0:00:00]} 2. Nf3 {[%emt 0:00:10]} b6 {[%emt 0:00:00]} 3. g3 {[%emt 0:01:20]} Bb7 {[%emt 0:00:00]} 4. Bg2 {[%emt 0:00:13]} e6 {[%emt 0:00:20]} 5. O-O {[%emt 0:00:26]} Be7 {[%emt 0:00:07]} 6. c4 {[%emt 0:00:26]} O-O {[%emt 0:00:06]} 7. Nc3 {[%emt 0:00:22]} d5 {[%emt 0:03:35]} 8. Ne5 {[%emt 0:02:56]} Nbd7 {[%emt 0:00:52]} 9. Qa4 {[%emt 0:06:59]} Nxe5 {[%emt 0:04:18]} 10. dxe5 {[%emt 0:01:01]} Ne4 {[%emt 0:01:13]} 11. cxd5 {[%emt 0:28:46]} Nxc3 {[%emt 0:01:53]} 12. bxc3 {[%emt 0:00:30]} exd5 {[%emt 0:03:09]} 13. c4 {[%emt 0:05:15]} c6 {[%emt 0:00:20]} 14. cxd5 {[%emt 0:02:19]} cxd5 {[%emt 0:02:22]} 15. Rd1 {[%emt 0:00:39]} Qc7 {[%emt 0:00:17]} 16. Bf4 {[%emt 0:01:26]} g5 {[%emt 0:00:11]} 17. Rac1 {[%emt 0:02:29]} Qb8 {[%emt 0:00:47]} 18. Bxg5 {[%emt 0:20:29]} Bxg5 {[%emt 0:01:16]} 19. Qg4 {[%emt 0:00:16]} h6 {[%emt 0:05:22]} 20. f4 {[%emt 0:00:34]} 1-0